[Event "1st Bangalore GM-Open-A 2024"]
[Site "Bangalore"]
[Date "2024.01.19"]
[Round "2.4"]
[White "Saurabh Anand"]
[Black "Iniyan, Pa"]
[Result "1/2-1/2"]
[ECO "D35"]
[WhiteElo "2243"]
[BlackElo "2515"]
[Annotator "TA"]
[PlyCount "61"]
[EventDate "2024.01.20"]
[EventType "swiss"]
[EventCountry "IND"]
[SourceTitle "playchess.com"]
[Source "ChessBase"]
[SourceQuality "1"]
[TimeControl "5400+30"]

{[%evp 21,61,0,-2,0,-4,0,0,-7,0,-9,16,12,18,20,29,13,82,96,100,88,90,92,98,72,62,43,38,14,135,75,135,0,123,0,135,0,119,0,133,0,113,0]} 1. d4 {[%emt 0:00:35]} Nf6 {[%emt 0:02:09]} 2. c4 {[%emt 0:00:19]} e6 {[%emt 0:00:13]} 3. Nf3 {[%emt 0:00:35]} d5 {[%emt 0:00:18]} 4. Nc3 {[%emt 0:00:43]} Bb4 {[%emt 0:00:13]} 5. cxd5 {[%emt 0:01:25]} exd5 {[%emt 0:00:14]} 6. Bg5 {[%emt 0:00:47]} h6 {[%emt 0:00:08]} 7. Bh4 {[%emt 0:00:23]} Bf5 {[%emt 0:00:10]} 8. e3 {[%emt 0:04:14]} Nbd7 {[%emt 0:00:13]} 9. Bd3 {[%emt 0:09:33]} Bxd3 {[%emt 0:00:55]} 10. Qxd3 {[%emt 0:00:03]} c6 {[%emt 0:00:39]} 11. O-O {[%emt 0:00:52]} O-O {[%emt 0:00:31]} 12. Ne5 {[%emt 0:04:49] D35: Queen's Gambit Declined: Exchange Variation.} Qe8 {[%emt 0:07:12]} 13. Nxd7 {[%emt 0:04:53]} Nxd7 {[%emt 0:00:12]} 14. Bg3 {[%emt 0:00:56] The position is equal.} Qe6 {[%emt 0:06:22] [#]} 15. Rfc1 $146 {[%emt 0:05:49]} ({Predecessor:} 15. Ne2 Bd6 16. Rab1 a5 17. Qb3 Rfb8 18. Qc2 Nf6 19. Bxd6 Qxd6 20. Nf4 Re8 21. Rfe1 {½-½ Jyothsna,L (1910)-Karavade,E (2294) IND-chT (Women) 2023 (6.1)}) 15... f5 {[%emt 0:09:31]} 16. Ne2 {[%emt 0:02:02] Black should prevent Qb3.} Bd6 {[%emt 0:01:31]} 17. Bxd6 {[%emt 0:05:51]} Qxd6 {[%emt 0:00:10]} 18. b4 {[%emt 0:00:45]} (18. Qb3 $5 {[%cal Rb3b7]}) 18... b5 {[%emt 0:08:31]} ({Resist} 18... Qxb4 19. Rab1 Qd6 20. Rxb7 $16) (18... Nb6 $11) 19. a4 $16 {[%emt 0:07:40]} bxa4 {[%emt 0:00:23]} 20. Rxa4 {[%emt 0:01:16]} Nb6 {[%emt 0:00:08]} 21. Ra6 {[%emt 0:04:14]} Qxb4 {[%emt 0:00:21]} 22. g3 {[%emt 0:00:50]} Qd6 {[%emt 0:11:20]} 23. Rca1 {[%emt 0:01:46][%mdl 1024] White has compensation.} (23. Qc2 $5 {[%cal Rc2c6]}) 23... Qd7 {[%emt 0:00:25]} 24. Qa3 {[%emt 0:00:13][%cal Oe2f4]} Nc8 {[%emt 0:00:10]} (24... Nc4 $11 {keeps the balance.} 25. Qc5 Rfc8) 25. Qc5 {[%emt 0:00:13]} (25. Nf4 $142) 25... Nb6 {[%emt 0:00:06]} ({Better is} 25... Rf6) 26. Qa3 {[%emt 0:00:04] White has more active pieces.} Nc8 {[%emt 0:00:04]} 27. Qc5 {[%emt 0:00:06]} Nb6 {[%emt 0:00:04]} 28. Qa3 {[%emt 0:00:04]} Nc8 {[%emt 0:00:17]} 29. Qc5 {[%emt 0:00:09]} Nb6 {[%emt 0:00:04]} 30. Qa3 {[%emt 0:00:04]} Nc8 {[%emt 0:00:03]} 31. Qc5 {[%emt 0:00:04] Weighted Error Value: White=0.42/Black=0.20 (precise)} ({White should try} 31. Nf4 $16) 1/2-1/2

[Event "1st Bangalore GM-Open-A 2024"]
[Site "Bangalore"]
[Date "2024.01.19"]
[Round "2.5"]
[White "Roy Chowdhury, Saptarshi"]
[Black "Pranav Anand"]
[Result "0-1"]
[ECO "D35"]
[WhiteElo "2233"]
[BlackElo "2513"]
[Annotator "TA"]
[PlyCount "104"]
[EventDate "2024.01.20"]
[EventType "swiss"]
[EventCountry "IND"]
[SourceTitle "playchess.com"]
[Source "ChessBase"]
[SourceQuality "1"]
[TimeControl "5400+30"]

{[%evp 12,104,19,19,17,9,16,15,15,14,8,13,15,12,19,7,6,0,13,-27,-28,-33,-13,-11,0,-29,24,12,28,43,13,-16,-14,-4,12,-13,-14,-11,-22,-19,-19,-23,-18,-16,-9,-22,-8,-4,0,-21,-15,-32,-33,-33,-18,-50,-36,-68,-72,-110,-111,-185,-132,-192,-179,-208,-198,-282,-259,-296,-216,-323,-322,-320,-291,-429,-356,-354,-356,-400,-316,-552,-536,-635,-616,-932,-906,-910,-932,-29980,-29981,-29988,-29989,-29989,-29990]} 1. Nf3 {[%emt 0:00:09]} Nf6 {[%emt 0:00:32]} 2. d4 {[%emt 0:00:29]} d5 {[%emt 0:00:22]} 3. c4 {[%emt 0:00:38]} e6 {[%emt 0:00:05]} 4. Nc3 {[%emt 0:00:35]} c6 {[%emt 0:00:05]} 5. cxd5 {[%emt 0:02:13]} exd5 {[%emt 0:00:09]} 6. Bg5 {[%emt 0:00:05]} Nbd7 {[%emt 0:01:24]} 7. e3 {[%emt 0:01:04]} h6 {[%emt 0:00:06] D35: Queen's Gambit Declined: Exchange Variation.} 8. Bh4 {[%emt 0:01:06]} g5 {[%emt 0:00:08]} 9. Bg3 {[%emt 0:00:03]} Nh5 {[%emt 0:00:04] The position is equal.} 10. Bd3 {[%emt 0:01:15]} Nxg3 {[%emt 0:00:36]} 11. hxg3 {[%emt 0:00:08]} Bg7 {[%emt 0:00:02]} 12. Qc2 {[%emt 0:00:15]} Nb6 {[%emt 0:03:18]} 13. O-O-O {[%emt 0:06:01]} Be6 {[%emt 0:07:00]} 14. Kb1 {[%emt 0:01:52]} Qe7 {[%emt 0:01:31]} 15. Rhe1 {[%emt 0:05:17]} O-O-O {[%emt 0:07:06] [#]} 16. Na4 $146 {[%emt 0:06:14]} ({Predecessor:} 16. Nd2 Kb8 17. Nb3 h5 18. Nc5 h4 19. gxh4 Rxh4 20. Qb3 Rh2 21. Bf1 Bf5+ 22. Ka1 Bf8 23. e4 dxe4 24. N3xe4 Bxe4 25. Nxe4 Rh4 26. Qg3+ Ka8 27. Nd2 {½-½ Miroiu,G (2306)-Jianu,V (2553) Arad op 9th 2016 (5)}) 16... Kb8 {[%emt 0:07:20]} 17. Nc5 {[%emt 0:01:44]} h5 {[%emt 0:03:38]} 18. Bf5 {[%emt 0:09:29]} g4 {[%emt 0:15:53]} ({Black should play} 18... Nd7) 19. Nh4 $11 {[%emt 0:04:35] next Bxe6 is good for White. A dynamic duo of knights.} Qf6 {[%emt 0:01:54]} 20. Bxe6 {[%emt 0:12:38]} fxe6 {[%emt 0:00:26]} 21. Ng6 {[%emt 0:00:18] Prevents Nd7} Rh6 {[%emt 0:01:57]} 22. Ne5 {[%emt 0:00:43]} Qe7 {[%emt 0:09:31]} 23. Ncd3 {[%emt 0:07:06]} (23. Nxb7 {looks sharper.} Kxb7 24. Nxc6 Qc7 25. Nxd8+ Qxd8 26. Rc1) 23... Bxe5 {[%emt 0:05:03]} 24. Nxe5 {[%emt 0:00:06]} Nd7 {[%emt 0:00:09]} 25. Nd3 {[%emt 0:10:39]} Qf6 {[%emt 0:02:14]} 26. Qc3 {[%emt 0:03:59]} Qf5 {[%emt 0:03:00]} 27. Ka1 {[%emt 0:01:02]} Nf6 {[%emt 0:03:25]} 28. Qb3 {[%emt 0:03:23]} Rh7 {[%emt 0:01:05]} 29. f3 {[%emt 0:03:42]} Ka8 {[%emt 0:01:34]} 30. Ne5 {[%emt 0:00:33]} (30. Nc5 $5 {[%cal Re3e4]}) 30... Qg5 {[%emt 0:01:13]} 31. Rf1 {[%emt 0:04:18]} Rc8 {[%emt 0:05:34]} 32. Qa3 {[%emt 0:04:51]} gxf3 {[%emt 0:03:51]} 33. Rxf3 {[%emt 0:00:12] [#]} c5 $1 {[%emt 0:00:55][%cal Bc6c5,Bc5c4,Bc4c3][%mdl 32]} 34. Rc1 {[%emt 0:04:40]} (34. Nd3 Rhc7) 34... Ne4 {[%emt 0:01:48] White is on the road to losing.} 35. b4 {[%emt 0:02:22][%cal Rb4c5]} c4 $1 {[%emt 0:04:07] Black is more active.} (35... Nxg3 36. Rxc5 Rb8 37. b5 $18) 36. Rcf1 {[%emt 0:01:47]} (36. b5 $17 Qg8 37. g4 (37. b6 a6 $17)) 36... Qe7 {[%emt 0:03:12]} (36... Nxg3 $2 37. Rf8 $18) (36... Qg8 $19 {...Nd2 is the strong threat.} 37. Rg1 Nxg3) 37. Ng6 {[%emt 0:00:23] [#] Against Nd2} (37. Rf7 $17 Rxf7 38. Rxf7) 37... Qd6 $1 $19 {[%emt 0:00:20][%cal Oh7c7]} 38. Rf8 {[%emt 0:00:49]} Rhc7 {[%emt 0:00:11][%cal Oc4c3]} 39. Rxc8+ {[%emt 0:01:39]} (39. Qa5 $142) 39... Rxc8 {[%emt 0:00:02]} 40. Ne5 {[%emt 0:00:09]} c3 {[%emt 0:00:30]} 41. Qa4 {[%emt 0:00:46]} (41. Rc1 $142) 41... Nxg3 {[%emt 0:01:07]} 42. Rc1 {[%emt 0:01:10]} Nf5 {[%emt 0:01:58]} 43. Nd7 {[%emt 0:00:42]} (43. Qb3 $142 Qc7 44. g4 hxg4 45. Nxg4) 43... b6 {[%emt 0:01:48]} (43... Nxe3 $2 44. Rxc3 Rc6 45. Nc5 $19) 44. Ne5 {[%emt 0:00:19]} Nxe3 {[%emt 0:00:21][%cal Od6f8]} 45. b5 {[%emt 0:00:04]} Rc7 {[%emt 0:01:23] Threatens to win with ...Qf8.} (45... Nxg2 46. Nc6 a5 47. Rxc3 $19) 46. Nc6 $2 {[%emt 0:01:02]} (46. Qb3 Nf5 47. Nc6) 46... c2 {[%emt 0:01:08]} (46... Nxg2 $2 {is the wrong capture.} 47. Rxc3 Nh4 48. Qd1 $19) 47. Qb3 {[%emt 0:00:31]} Qf4 {[%emt 0:00:13]} (47... Nxg2 $2 {perishes.} 48. Kb2 $19) 48. g3 {[%emt 0:00:22]} Qxg3 {[%emt 0:00:58] Strongly threatening ...h4.} 49. Qb4 {[%emt 0:00:25]} Qf4 {[%emt 0:00:22] aiming for ...Nc4.} 50. Kb2 {[%emt 0:01:03]} a5 {[%emt 0:00:31] Black mates.} 51. Nxa5 {[%emt 0:00:33]} Nd1+ {[%emt 0:00:47]} 52. Kb3 {[%emt 0:00:28]} Qe3+ {[%emt 0:00:34] Weighted Error Value: White=0.55/Black=0.12 (very precise)} ({Stronger than} 52... Qxc1 53. Qf8+ Ka7 54. Nc6+ Rxc6 55. Qe7+ $11) 0-1

[Event "1st Bangalore GM-Open-A 2024"]
[Site "Bangalore"]
[Date "2024.01.19"]
[Round "2.6"]
[White "Mitrabha, Guha"]
[Black "Teterev, Vitaly"]
[Result "1-0"]
[ECO "E69"]
[WhiteElo "2504"]
[BlackElo "2288"]
[Annotator "TA"]
[PlyCount "94"]
[EventDate "2024.01.20"]
[EventType "swiss"]
[EventCountry "IND"]
[SourceTitle "playchess.com"]
[Source "ChessBase"]
[SourceQuality "1"]
[TimeControl "5400+30"]

{[%evp 26,94,70,72,73,43,99,94,98,100,115,86,85,0,106,64,102,79,81,75,79,45,77,56,48,58,56,52,53,60,63,29,65,81,99,92,121,119,127,109,112,113,232,29,189,145,603,574,573,583,572,558,608,575,1084,1002,862,852,1108,1067,1522,1421,6594,6594,6283,6187,5620,5573,5106,2020,1320]} 1. c4 {[%emt 0:08:16]} Nf6 {[%emt 0:00:29]} 2. Nc3 {[%emt 0:00:10]} g6 {[%emt 0:01:08]} 3. g3 {[%emt 0:05:43]} Bg7 {[%emt 0:03:04]} 4. Bg2 {[%emt 0:01:24]} O-O {[%emt 0:04:58]} 5. Nf3 {[%emt 0:01:14]} d6 {[%emt 0:02:07]} 6. d4 {[%emt 0:01:23]} Nbd7 {[%emt 0:01:44]} 7. O-O {[%emt 0:00:16]} e5 {[%emt 0:00:05]} 8. e4 {[%emt 0:00:35]} c6 {[%emt 0:04:27]} 9. h3 {[%emt 0:00:13]} exd4 {[%emt 0:01:33]} 10. Nxd4 {[%emt 0:00:08]} Re8 {[%emt 0:00:06]} 11. Be3 {[%emt 0:00:21]} Nc5 {[%emt 0:00:26]} 12. Qc2 {[%emt 0:00:02]} a5 {[%emt 0:00:10]} 13. Rad1 {[%emt 0:00:07]} Nfd7 {[%emt 0:01:40]} 14. b3 {[%emt 0:01:30]} Qb6 {[%emt 0:01:10] E69: King's Indian: Fianchetto: 6...Nbd7 7 0-0 e5 8 e4 c6 9 h3.} 15. Nde2 {[%emt 0:11:14]} Qc7 {[%emt 0:26:35] [#]} (15... Qb4 $14) 16. Rd2 $146 {[%emt 0:03:58]} ({Predecessor:} 16. Rfe1 Ne5 17. f4 Ned7 18. Kh2 Bf8 19. Bf2 Nf6 20. Nd4 Nh5 21. Nf3 Nf6 22. Bxc5 dxc5 {½-½ Brejnik,G (2295)-Hausner,I (2266) Nepomuk-A 2022 (2)}) 16... Na6 {[%emt 0:08:35] White is better.} 17. Rfd1 {[%emt 0:05:43]} Bf8 {[%emt 0:00:08]} 18. Qb2 {[%emt 0:08:18]} Nac5 {[%emt 0:13:56]} 19. Qc2 {[%emt 0:01:50]} Na6 $1 {[%emt 0:00:41]} 20. Kh1 {[%emt 0:00:20]} Nac5 {[%emt 0:02:40]} 21. Qb1 {[%emt 0:03:49]} Nb6 {[%emt 0:03:08]} 22. Bf4 {[%emt 0:01:12]} Rd8 {[%emt 0:01:21]} 23. e5 {[%emt 0:08:27][%cal Be4e5,Be5d6][%mdl 32]} Bf5 {[%emt 0:02:34]} 24. exd6 {[%emt 0:01:36]} Qc8 {[%emt 0:10:04]} 25. Qb2 {[%emt 0:02:59] g4 would be deadly.} Bxh3 {[%emt 0:00:05]} 26. Be3 {[%emt 0:01:43]} Bxg2+ $1 {[%emt 0:00:13]} 27. Kxg2 {[%emt 0:00:02]} Nbd7 {[%emt 0:00:14]} 28. a3 {[%emt 0:04:25] White has more active pieces.} Bg7 {[%emt 0:00:39]} 29. Bd4 {[%emt 0:00:19] Bxg7 is the strong threat.} Bxd4 {[%emt 0:00:59]} 30. Rxd4 {[%emt 0:00:12]} (30. Nxd4 {seems wilder.} Nf6 31. b4 Nce4 32. Nxe4 Nxe4 33. d7) 30... Nf6 {[%emt 0:01:38]} 31. b4 $36 {[%emt 0:01:55][%mdl 2048] White is in control.} axb4 {[%emt 0:00:07]} 32. axb4 {[%emt 0:00:05]} Ne6 {[%emt 0:00:27]} 33. Rh4 {[%emt 0:00:33] Black must now prevent Ne4.} c5 {[%emt 0:05:00]} (33... h5 $16 {was necessary.}) 34. b5 $2 {[%emt 0:01:58]} (34. Nb5 $18 Nh5 35. Nec3) 34... Ng7 $2 {[%emt 0:01:07]} (34... b6 $11 {and Black is okay.}) 35. Na4 {[%emt 0:07:47][%mdl 64] Discovered Attack} Nf5 $2 {[%emt 0:01:41][%mdl 8192] [#] Loses the game.} (35... Nd7 $16) 36. Qxf6 $1 $18 {[%emt 0:03:03][%cal Oh4h7] White wants to mate with Rxh7! White is clearly winning.} Nxh4+ {[%emt 0:01:47]} 37. Qxh4 {[%emt 0:00:03]} Rxa4 {[%emt 0:00:42] [#]} 38. Nc3 $1 {[%emt 0:00:02][%cal Be2c3,Bc3e4,Be4c5][%mdl 32]} Ra8 {[%emt 0:00:20]} 39. Ne4 {[%emt 0:00:28]} Qf5 {[%emt 0:00:34][%cal Oh7h6]} 40. Rd5 {[%emt 0:00:07]} Qe6 {[%emt 0:00:26]} 41. Nxc5 {[%emt 0:02:40]} ({Weaker is} 41. Rxc5 h6 $16) 41... Qe2 {[%emt 0:00:47]} 42. Ne4 {[%emt 0:00:07] Strongly threatening Nf6+.} f5 {[%emt 0:00:53] [#] Black is weak on the dark squares} 43. Rxf5 $3 {[%emt 0:06:37][%mdl 512]} Rf8 {[%emt 0:00:45]} (43... gxf5 44. Qg5+) 44. Nf6+ {[%emt 0:00:02]} Rxf6 {[%emt 0:00:08]} 45. Rxf6 {[%emt 0:00:01] White threatens Qd4 and mate.} Ra1 {[%emt 0:01:04] [#]} 46. Rf8+ $3 {[%emt 0:00:20][%mdl 576] Decoy, Clearance} Kxf8 {[%emt 0:00:11]} 47. Qf6+ {[%emt 0:00:01]} (47. Qxh7 {leads to mate.} Qe4+ 48. f3 Qc2+ 49. Kh3 Rh1+ {[%mdl 64] Skewer} 50. Kg4 Qf5#) 47... Ke8 {[%emt 0:00:54] Magnificent play by Mitrabha!   Weighted Error Value: White=0.26 (precise) /Black=0.38} 1-0

[Event "1st Bangalore GM-Open-A 2024"]
[Site "Bangalore"]
[Date "2024.01.19"]
[Round "2.7"]
[White "Savchenko, Boris"]
[Black "Srihari L"]
[Result "0-1"]
[ECO "B68"]
[WhiteElo "2489"]
[BlackElo "2288"]
[Annotator "RC"]
[PlyCount "74"]
[EventDate "2024.01.20"]
[EventType "swiss"]
[EventCountry "IND"]
[SourceTitle "playchess.com"]
[Source "ChessBase"]
[SourceQuality "1"]
[TimeControl "5400+30"]

1. e4 {[%emt 0:00:03]} c5 {[%emt 0:00:04]} 2. Nf3 {[%emt 0:00:07]} d6 {[%emt 0:00:04]} 3. d4 {[%emt 0:00:09]} cxd4 {[%emt 0:00:04]} 4. Nxd4 {[%emt 0:00:04]} Nf6 {[%emt 0:00:07]} 5. Nc3 {[%emt 0:00:06]} Nc6 {[%emt 0:00:04]} 6. Bg5 {[%emt 0:01:37]} e6 {[%emt 0:00:09]} 7. Qd2 {[%emt 0:00:17]} a6 {[%emt 0:00:08]} 8. O-O-O {[%emt 0:00:46]} Bd7 {[%emt 0:00:07]} 9. f4 {[%emt 0:00:29]} Be7 {[%emt 0:00:16]} 10. Nb3 {[%emt 0:02:35]} b5 {[%emt 0:07:23]} 11. a3 {[%emt 0:00:27]} Rb8 {[%emt 0:05:04]} 12. Bxf6 {[%emt 0:12:56]} gxf6 {[%emt 0:01:13]} 13. g3 {[%emt 0:01:34]} b4 {[%emt 0:03:42]} 14. axb4 {[%emt 0:00:08]} Nxb4 {[%emt 0:01:48]} 15. f5 {[%emt 0:00:58]} Qb6 {[%emt 0:22:33]} 16. Bc4 {[%emt 0:09:04]} a5 {[%emt 0:05:20]} 17. fxe6 {[%emt 0:04:09]} fxe6 {[%emt 0:00:21]} 18. Qh6 {[%emt 0:00:39]} Rc8 {[%emt 0:23:06]} 19. Qh5+ {[%emt 0:06:05]} Kf8 {[%emt 0:00:12]} 20. e5 {[%emt 0:26:06]} Rxc4 {[%emt 0:09:42]} 21. exf6 {[%emt 0:06:38]} a4 {[%emt 0:07:23]} 22. fxe7+ {[%emt 0:13:33]} Kxe7 {[%emt 0:00:07]} 23. Qg5+ {[%emt 0:00:08]} Ke8 {[%emt 0:00:23]} 24. Qh5+ {[%emt 0:08:44]} Ke7 {[%emt 0:00:07]} 25. Qg5+ {[%emt 0:05:00]} Ke8 {[%emt 0:00:06]} 26. Qh5+ {[%emt 0:00:03]} Ke7 {[%emt 0:00:06]} 27. Rhf1 {[%emt 0:00:23]} axb3 {[%emt 0:01:09]} 28. Qg5+ {[%emt 0:01:04]} Ke8 {[%emt 0:00:06]} 29. cxb3 {[%emt 0:00:33]} Rc8 {[%emt 0:02:54]} 30. Qf6 {[%emt 0:00:34]} Qe3+ {[%emt 0:01:17]} 31. Kb1 {[%emt 0:00:13]} Qe5 {[%emt 0:00:08]} 32. Qf7+ {[%emt 0:00:32]} Kd8 {[%emt 0:00:08]} 33. Rde1 {[%emt 0:00:44]} Qg5 {[%emt 0:00:41]} 34. Re4 {[%emt 0:00:31]} Nd5 {[%emt 0:01:47]} 35. Nxd5 {[%emt 0:00:29]} exd5 {[%emt 0:00:20]} 36. Rh4 {[%emt 0:00:03]} Re8 {[%emt 0:03:28]} 37. Rxh7 {[%emt 0:00:09]} Bf5+ {[%emt 0:00:31]} 0-1

[Event "1st Bangalore GM-Open-A 2024"]
[Site "Bangalore"]
[Date "2024.01.19"]
[Round "2.8"]
[White "Stany, G.A."]
[Black "Ratnakaran, K.."]
[Result "1/2-1/2"]
[ECO "B00"]
[WhiteElo "2459"]
[BlackElo "2256"]
[Annotator "RC"]
[PlyCount "102"]
[EventDate "2024.01.20"]
[EventType "swiss"]
[EventCountry "IND"]
[SourceTitle "playchess.com"]
[Source "ChessBase"]
[SourceQuality "1"]
[TimeControl "5400+30"]

1. e4 {[%emt 0:00:29]} e6 {[%emt 0:00:08]} 2. d4 {[%emt 0:00:02]} b6 {[%emt 0:00:08]} 3. Bd3 {[%emt 0:07:52]} Bb7 {[%emt 0:00:08]} 4. Ne2 {[%emt 0:01:38]} d6 {[%emt 0:00:19]} 5. O-O {[%emt 0:00:10]} Nd7 {[%emt 0:00:04]} 6. f4 {[%emt 0:02:00]} h5 {[%emt 0:00:40]} 7. c4 {[%emt 0:05:56]} h4 {[%emt 0:00:11]} 8. h3 {[%emt 0:00:10]} Ngf6 {[%emt 0:00:51]} 9. Nbc3 {[%emt 0:00:25]} c5 {[%emt 0:02:20]} 10. d5 {[%emt 0:00:52]} e5 {[%emt 0:00:45]} 11. Qa4 {[%emt 0:06:17]} a6 {[%emt 0:00:14]} 12. Be3 {[%emt 0:12:32]} Nh5 {[%emt 0:02:18]} 13. fxe5 {[%emt 0:01:06]} dxe5 {[%emt 0:00:16]} 14. a3 {[%emt 0:02:56]} g6 {[%emt 0:05:12]} 15. b4 {[%emt 0:00:32]} Bh6 {[%emt 0:01:29]} 16. Bxh6 {[%emt 0:13:00]} Rxh6 {[%emt 0:00:16]} 17. bxc5 {[%emt 0:00:03]} bxc5 {[%emt 0:00:14]} 18. Rab1 {[%emt 0:00:33]} Rb8 {[%emt 0:05:57]} 19. Nd1 {[%emt 0:02:44]} Kf8 {[%emt 0:06:35]} 20. Ne3 {[%emt 0:00:28]} Kg7 {[%emt 0:00:09]} 21. Rb2 {[%emt 0:11:24]} Rh8 {[%emt 0:03:02]} 22. Rfb1 {[%emt 0:00:50]} Qg5 {[%emt 0:05:08]} 23. Ng4 {[%emt 0:11:46]} Bc8 {[%emt 0:01:30]} 24. Qc2 {[%emt 0:04:17]} Rxb2 {[%emt 0:04:54]} 25. Qxb2 {[%emt 0:01:36]} Re8 {[%emt 0:05:25]} 26. Rf1 {[%emt 0:05:44]} Nf8 {[%emt 0:05:33]} 27. Nf2 {[%emt 0:03:59]} f5 {[%emt 0:03:03]} 28. exf5 {[%emt 0:03:20]} gxf5 {[%emt 0:00:30]} 29. Bb1 {[%emt 0:00:16]} Ng6 {[%emt 0:05:47]} 30. Nd3 {[%emt 0:00:25]} Qe3+ {[%emt 0:03:23]} 31. Kh2 {[%emt 0:00:07]} Kh7 {[%emt 0:00:11]} 32. Qc1 {[%emt 0:02:00]} Ng3 {[%emt 0:00:03]} 33. Re1 {[%emt 0:00:38]} Qxc1 {[%emt 0:05:26]} 34. Nexc1 {[%emt 0:00:03]} e4 {[%emt 0:04:37]} 35. Nb3 {[%emt 0:00:06]} Re7 {[%emt 0:04:46]} 36. Ndxc5 {[%emt 0:00:15]} Ne5 {[%emt 0:00:17]} 37. Nd2 {[%emt 0:00:53]} e3 {[%emt 0:05:14]} 38. Ndb3 {[%emt 0:01:16]} Nxc4 {[%emt 0:01:07]} 39. Bd3 {[%emt 0:00:32]} Nd6 {[%emt 0:00:24]} 40. Ne6 {[%emt 0:00:29]} Bxe6 {[%emt 0:04:17]} 41. dxe6 {[%emt 0:00:05]} Rxe6 {[%emt 0:01:49]} 42. Nd4 {[%emt 0:00:09]} Re7 {[%emt 0:02:45]} 43. Nc2 {[%emt 0:00:18]} e2 {[%emt 0:01:25]} 44. Bxa6 {[%emt 0:00:30]} Rc7 {[%emt 0:03:07]} 45. Nd4 {[%emt 0:01:14]} Ra7 {[%emt 0:02:05]} 46. Bxe2 {[%emt 0:00:09]} Rxa3 {[%emt 0:00:05]} 47. Bf3 {[%emt 0:00:47]} Kg7 {[%emt 0:02:47]} 48. Bc6 {[%emt 0:00:49]} Rc3 {[%emt 0:00:58]} 49. Ba8 {[%emt 0:00:32]} Ra3 {[%emt 0:03:12]} 50. Bc6 {[%emt 0:00:10]} Rc3 {[%emt 0:00:35]} 51. Ba8 {[%emt 0:00:06]} Ra3 {[%emt 0:00:07]} 1/2-1/2

[Event "1st Bangalore GM-Open-A 2024"]
[Site "Bangalore"]
[Date "2024.01.19"]
[Round "2.9"]
[White "Ajay Santhosh Parvathareddy"]
[Black "Fedorov, Alexei"]
[Result "0-1"]
[ECO "B22"]
[WhiteElo "2204"]
[BlackElo "2457"]
[Annotator "RC"]
[PlyCount "78"]
[EventDate "2024.01.20"]
[EventType "swiss"]
[EventCountry "IND"]
[SourceTitle "playchess.com"]
[Source "ChessBase"]
[SourceQuality "1"]
[TimeControl "5400+30"]

1. e4 {[%emt 0:00:02]} c5 {[%emt 0:00:06]} 2. Nf3 {[%emt 0:00:03]} Nc6 {[%emt 0:00:09]} 3. c3 {[%emt 0:00:04]} Nf6 {[%emt 0:00:13]} 4. e5 {[%emt 0:00:11]} Nd5 {[%emt 0:00:06]} 5. d4 {[%emt 0:00:03]} cxd4 {[%emt 0:00:06]} 6. cxd4 {[%emt 0:00:05]} d6 {[%emt 0:00:17]} 7. Bc4 {[%emt 0:00:05]} dxe5 {[%emt 0:05:12]} 8. dxe5 {[%emt 0:02:12]} Be6 {[%emt 0:00:09]} 9. O-O {[%emt 0:17:42]} Nc7 {[%emt 0:00:16]} 10. Bxe6 {[%emt 0:01:45]} Nxe6 {[%emt 0:01:21]} 11. Qe2 {[%emt 0:15:09]} g6 {[%emt 0:00:21]} 12. Rd1 {[%emt 0:03:22]} Qb8 {[%emt 0:00:05]} 13. b3 {[%emt 0:02:38]} Bg7 {[%emt 0:00:56]} 14. Bb2 {[%emt 0:00:07]} O-O {[%emt 0:00:58]} 15. Nbd2 {[%emt 0:01:31]} Rd8 {[%emt 0:05:21]} 16. Nf1 {[%emt 0:04:13]} Qc7 {[%emt 0:05:41]} 17. Rac1 {[%emt 0:02:44]} Bh6 {[%emt 0:04:41]} 18. Ne3 {[%emt 0:01:42]} Qb6 {[%emt 0:04:30]} 19. Rxd8+ {[%emt 0:08:00]} Rxd8 {[%emt 0:00:51]} 20. Rd1 {[%emt 0:00:06]} Rxd1+ {[%emt 0:16:39]} 21. Nxd1 {[%emt 0:00:08]} Nf4 {[%emt 0:00:17]} 22. Qe4 {[%emt 0:02:41]} Qd8 {[%emt 0:03:49]} 23. Nc3 {[%emt 0:07:55]} Nd3 {[%emt 0:00:48]} 24. Ba3 {[%emt 0:06:25]} Bg7 {[%emt 0:02:26]} 25. Nd5 {[%emt 0:01:59]} Ndxe5 {[%emt 0:01:01]} 26. Nxe5 {[%emt 0:00:50]} Bxe5 {[%emt 0:00:56]} 27. h3 {[%emt 0:03:07]} e6 {[%emt 0:04:48]} 28. Ne7+ {[%emt 0:00:39]} Kg7 {[%emt 0:00:14]} 29. g3 {[%emt 0:02:17]} Qd4 {[%emt 0:01:32]} 30. Qf3 {[%emt 0:02:01]} Qa1+ {[%emt 0:02:38]} 31. Kg2 {[%emt 0:00:02]} Nd4 {[%emt 0:11:56]} 32. Qe4 {[%emt 0:04:27]} Bf6 {[%emt 0:09:17]} 33. Qxb7 {[%emt 0:01:54]} Ne2 {[%emt 0:04:14]} 34. h4 {[%emt 0:03:16]} Qg1+ {[%emt 0:00:22]} 35. Kh3 {[%emt 0:00:07]} Qxf2 {[%emt 0:00:08]} 36. Qg2 {[%emt 0:00:17]} Qe3 {[%emt 0:00:19]} 37. Kh2 {[%emt 0:02:24]} Be5 {[%emt 0:00:34]} 38. Bc5 {[%emt 0:00:37]} Bxg3+ {[%emt 0:00:43]} 39. Kh1 {[%emt 0:00:07]} Qxc5 {[%emt 0:00:20]} 0-1

[Event "1st Bangalore GM-Open-A 2024"]
[Site "Bangalore"]
[Date "2024.01.19"]
[Round "2.10"]
[White "Neelash Saha"]
[Black "Joshua, A P"]
[Result "1-0"]
[ECO "A57"]
[WhiteElo "2446"]
[BlackElo "2234"]
[Annotator "RC"]
[PlyCount "51"]
[EventDate "2024.01.20"]
[EventType "swiss"]
[EventCountry "IND"]
[SourceTitle "playchess.com"]
[Source "ChessBase"]
[SourceQuality "1"]
[TimeControl "5400+30"]

1. d4 {[%emt 0:07:14]} Nf6 {[%emt 0:07:30]} 2. c4 {[%emt 0:00:00]} c5 {[%emt 0:00:44]} 3. d5 {[%emt 0:00:00]} b5 {[%emt 0:00:29]} 4. Qc2 {[%emt 0:00:00]} bxc4 {[%emt 0:00:42]} 5. e4 {[%emt 0:00:00]} e6 {[%emt 0:00:52]} 6. Nc3 {[%emt 0:02:23]} exd5 {[%emt 0:08:33]} 7. exd5 {[%emt 0:00:04]} d6 {[%emt 0:01:53]} 8. Bxc4 {[%emt 0:01:55]} Be7 {[%emt 0:01:23]} 9. h3 {[%emt 0:02:39]} Nbd7 {[%emt 0:01:45]} 10. Nf3 {[%emt 0:01:34]} O-O {[%emt 0:01:09]} 11. O-O {[%emt 0:00:06]} Nb6 {[%emt 0:00:51]} 12. b3 {[%emt 0:00:06]} Nxc4 {[%emt 0:05:44]} 13. bxc4 {[%emt 0:00:05]} Rb8 {[%emt 0:00:16]} 14. Re1 {[%emt 0:04:08]} Rb4 {[%emt 0:06:45]} 15. Nb5 {[%emt 0:15:51]} a6 {[%emt 0:10:58]} 16. Na7 {[%emt 0:08:53]} Bd7 {[%emt 0:02:46]} 17. Bd2 {[%emt 0:00:06]} Ba4 {[%emt 0:05:42]} 18. Qd3 {[%emt 0:02:43]} Rb8 {[%emt 0:07:50]} 19. Qa3 {[%emt 0:02:15]} Qc7 {[%emt 0:06:14]} 20. Qxa4 {[%emt 0:03:34]} Qxa7 {[%emt 0:00:09]} 21. Re2 {[%emt 0:00:04]} Rfc8 {[%emt 0:06:37]} 22. Bc3 {[%emt 0:07:08]} h6 {[%emt 0:07:09]} 23. Rae1 {[%emt 0:00:07]} Rb7 {[%emt 0:05:34]} 24. Nh4 {[%emt 0:00:57]} Nh7 {[%emt 0:02:33]} 25. Nf5 {[%emt 0:00:35]} Bf8 {[%emt 0:00:26]} 26. Re8 {[%emt 0:01:11]} 1-0